{"text_format":"1","workbook":"xlsx","n_sheets":2,"sheets":["Algu ievade","pasakņu_veidne"],"not_rendered":{"charts":0,"images":0,"macros":1,"external_links":0,"defined_names":7,"comments":0,"pivot_tables":0},"unopened":[],"bounds":{"document_bytes":16777216,"sheet_cells":100000,"rows_first":2000,"rows_last":500,"rows_between":2000,"halvings":0,"cell_chars":16384,"cell_head_chars":4096},"cells_cut":0,"cells_raw":0,"read":"whole","date_system":"1900"}

{"sheet":"Algu ievade","index":0,"n_rows":13,"n_cols":24,"rows_kept":13,"cut":false,"hidden":false,"merged":[]}
[null,"ALGU KALKULATORS",null,null,null,null,null,null,null,null,"PERIODS BEIDZĀS:","2013-04-08",null,"UZŅĒMUMA NOSAUKUMS:",null,"ADVENTURE WORKS"]
[]
[null,"ID","Darbinieka vārds","Nostrādātās stundas","Atvaļinājuma stundas","Slimības stundas","Virsstundas","Virsstundu likme","Bruto samaksa","Nodokļi un atvilkumi","Citi atvilkumi","Neto samaksa"," ","Stundu samaksa","Nodokļu statuss","Valsts pabalsts","Valsts nodoklis","Valsts ienākumu nodoklis","Sociālais nodoklis","Medicīnas nodoklis","Ieturētie nodokļi kopā","Apdrošināšanas atvilkums","Citi regulārie atvilkumi","Regulārie atvilkumi kopā"]
[null,1001,"Ēriks Andersens",50,5,1,null,null,{"$f":"SUM(Darbinieki[[#This Row],[Nostrādātās stundas]:[Slimības stundas]])*Darbinieki[[#This Row],[Stundu samaksa]]+Darbinieki[[#This Row],[Virsstundas]]*Darbinieki[[#This Row],[Virsstundu likme]]","v":560},{"$f":"Darbinieki[[#This Row],[Bruto samaksa]]*Darbinieki[[#This Row],[Ieturētie nodokļi kopā]] + Darbinieki[[#This Row],[Regulārie atvilkumi kopā]]","v":273.08000000000004},20,{"$f":"Darbinieki[[#This Row],[Bruto samaksa]]-Darbinieki[[#This Row],[Nodokļi un atvilkumi]]-Darbinieki[[#This Row],[Citi atvilkumi]]","v":266.91999999999996},null,10,1,4,2.3E-2,0.28000000000000003,6.3E-2,1.4500000000000001E-2,{"$f":"SUM(Darbinieki[[#This Row],[Valsts nodoklis]:[Medicīnas nodoklis]])","v":0.38050000000000006},20,40,{"$f":"SUM(Darbinieki[[#This Row],[Apdrošināšanas atvilkums]:[Citi regulārie atvilkumi]])","v":60}]
[null,1002,"Jānis Vanags",40,null,null,null,null,{"$f":"SUM(Darbinieki[[#This Row],[Nostrādātās stundas]:[Slimības stundas]])*Darbinieki[[#This Row],[Stundu samaksa]]+Darbinieki[[#This Row],[Virsstundas]]*Darbinieki[[#This Row],[Virsstundu likme]]","v":320},{"$f":"Darbinieki[[#This Row],[Bruto samaksa]]*Darbinieki[[#This Row],[Ieturētie nodokļi kopā]] + Darbinieki[[#This Row],[Regulārie atvilkumi kopā]]","v":131.76000000000002},null,{"$f":"Darbinieki[[#This Row],[Bruto samaksa]]-Darbinieki[[#This Row],[Nodokļi un atvilkumi]]-Darbinieki[[#This Row],[Citi atvilkumi]]","v":188.23999999999998},null,8,1,1,2.3E-2,0.28000000000000003,6.3E-2,1.4500000000000001E-2,{"$f":"SUM(Darbinieki[[#This Row],[Valsts nodoklis]:[Medicīnas nodoklis]])","v":0.38050000000000006},0,10,{"$f":"SUM(Darbinieki[[#This Row],[Apdrošināšanas atvilkums]:[Citi regulārie atvilkumi]])","v":10}]
[null,1003,"Līna Ābola",35,3,null,null,null,{"$f":"SUM(Darbinieki[[#This Row],[Nostrādātās stundas]:[Slimības stundas]])*Darbinieki[[#This Row],[Stundu samaksa]]+Darbinieki[[#This Row],[Virsstundas]]*Darbinieki[[#This Row],[Virsstundu likme]]","v":532},{"$f":"Darbinieki[[#This Row],[Bruto samaksa]]*Darbinieki[[#This Row],[Ieturētie nodokļi kopā]] + Darbinieki[[#This Row],[Regulārie atvilkumi kopā]]","v":240.42600000000004},null,{"$f":"Darbinieki[[#This Row],[Bruto samaksa]]-Darbinieki[[#This Row],[Nodokļi un atvilkumi]]-Darbinieki[[#This Row],[Citi atvilkumi]]","v":291.57399999999996},null,14,1,3,2.3E-2,0.28000000000000003,6.3E-2,1.4500000000000001E-2,{"$f":"SUM(Darbinieki[[#This Row],[Valsts nodoklis]:[Medicīnas nodoklis]])","v":0.38050000000000006},18,20,{"$f":"SUM(Darbinieki[[#This Row],[Apdrošināšanas atvilkums]:[Citi regulārie atvilkumi]])","v":38}]
[null,1008,"Mareks Stūris",50,5,1,null,null,{"$f":"SUM(Darbinieki[[#This Row],[Nostrādātās stundas]:[Slimības stundas]])*Darbinieki[[#This Row],[Stundu samaksa]]+Darbinieki[[#This Row],[Virsstundas]]*Darbinieki[[#This Row],[Virsstundu likme]]","v":1120},{"$f":"Darbinieki[[#This Row],[Bruto samaksa]]*Darbinieki[[#This Row],[Ieturētie nodokļi kopā]] + Darbinieki[[#This Row],[Regulārie atvilkumi kopā]]","v":441.16000000000008},null,{"$f":"Darbinieki[[#This Row],[Bruto samaksa]]-Darbinieki[[#This Row],[Nodokļi un atvilkumi]]-Darbinieki[[#This Row],[Citi atvilkumi]]","v":678.83999999999992},null,20,1,0,2.3E-2,0.28000000000000003,6.3E-2,1.4500000000000001E-2,{"$f":"SUM(Darbinieki[[#This Row],[Valsts nodoklis]:[Medicīnas nodoklis]])","v":0.38050000000000006},15,null,{"$f":"SUM(Darbinieki[[#This Row],[Apdrošināšanas atvilkums]:[Citi regulārie atvilkumi]])","v":15}]
[null,1011,"Austra Zvaniņa",40,null,null,2,15,{"$f":"SUM(Darbinieki[[#This Row],[Nostrādātās stundas]:[Slimības stundas]])*Darbinieki[[#This Row],[Stundu samaksa]]+Darbinieki[[#This Row],[Virsstundas]]*Darbinieki[[#This Row],[Virsstundu likme]]","v":430},{"$f":"Darbinieki[[#This Row],[Bruto samaksa]]*Darbinieki[[#This Row],[Ieturētie nodokļi kopā]] + Darbinieki[[#This Row],[Regulārie atvilkumi kopā]]","v":223.61500000000004},null,{"$f":"Darbinieki[[#This Row],[Bruto samaksa]]-Darbinieki[[#This Row],[Nodokļi un atvilkumi]]-Darbinieki[[#This Row],[Citi atvilkumi]]","v":206.38499999999996},null,10,1,0,2.3E-2,0.28000000000000003,6.3E-2,1.4500000000000001E-2,{"$f":"SUM(Darbinieki[[#This Row],[Valsts nodoklis]:[Medicīnas nodoklis]])","v":0.38050000000000006},20,40,{"$f":"SUM(Darbinieki[[#This Row],[Apdrošināšanas atvilkums]:[Citi regulārie atvilkumi]])","v":60}]
[null,1012,"Andris Balodis",40,5,1,null,null,{"$f":"SUM(Darbinieki[[#This Row],[Nostrādātās stundas]:[Slimības stundas]])*Darbinieki[[#This Row],[Stundu samaksa]]+Darbinieki[[#This Row],[Virsstundas]]*Darbinieki[[#This Row],[Virsstundu likme]]","v":552},{"$f":"Darbinieki[[#This Row],[Bruto samaksa]]*Darbinieki[[#This Row],[Ieturētie nodokļi kopā]] + Darbinieki[[#This Row],[Regulārie atvilkumi kopā]]","v":270.03600000000006},null,{"$f":"Darbinieki[[#This Row],[Bruto samaksa]]-Darbinieki[[#This Row],[Nodokļi un atvilkumi]]-Darbinieki[[#This Row],[Citi atvilkumi]]","v":281.96399999999994},null,12,1,4,2.3E-2,0.28000000000000003,6.3E-2,1.4500000000000001E-2,{"$f":"SUM(Darbinieki[[#This Row],[Valsts nodoklis]:[Medicīnas nodoklis]])","v":0.38050000000000006},20,40,{"$f":"SUM(Darbinieki[[#This Row],[Apdrošināšanas atvilkums]:[Citi regulārie atvilkumi]])","v":60}]
[null,1025,"Vera Ploce",36,null,2,1,18,{"$f":"SUM(Darbinieki[[#This Row],[Nostrādātās stundas]:[Slimības stundas]])*Darbinieki[[#This Row],[Stundu samaksa]]+Darbinieki[[#This Row],[Virsstundas]]*Darbinieki[[#This Row],[Virsstundu likme]]","v":474},{"$f":"Darbinieki[[#This Row],[Bruto samaksa]]*Darbinieki[[#This Row],[Ieturētie nodokļi kopā]] + Darbinieki[[#This Row],[Regulārie atvilkumi kopā]]","v":225.35700000000003},25,{"$f":"Darbinieki[[#This Row],[Bruto samaksa]]-Darbinieki[[#This Row],[Nodokļi un atvilkumi]]-Darbinieki[[#This Row],[Citi atvilkumi]]","v":223.64299999999997},null,12,1,2,2.3E-2,0.28000000000000003,6.3E-2,1.4500000000000001E-2,{"$f":"SUM(Darbinieki[[#This Row],[Valsts nodoklis]:[Medicīnas nodoklis]])","v":0.38050000000000006},25,20,{"$f":"SUM(Darbinieki[[#This Row],[Apdrošināšanas atvilkums]:[Citi regulārie atvilkumi]])","v":45}]
[null,1032,"Jānis Porietis",40,5,1,null,null,{"$f":"SUM(Darbinieki[[#This Row],[Nostrādātās stundas]:[Slimības stundas]])*Darbinieki[[#This Row],[Stundu samaksa]]+Darbinieki[[#This Row],[Virsstundas]]*Darbinieki[[#This Row],[Virsstundu likme]]","v":460},{"$f":"Darbinieki[[#This Row],[Bruto samaksa]]*Darbinieki[[#This Row],[Ieturētie nodokļi kopā]] + Darbinieki[[#This Row],[Regulārie atvilkumi kopā]]","v":175.03000000000003},50,{"$f":"Darbinieki[[#This Row],[Bruto samaksa]]-Darbinieki[[#This Row],[Nodokļi un atvilkumi]]-Darbinieki[[#This Row],[Citi atvilkumi]]","v":234.96999999999997},null,10,1,3,2.3E-2,0.28000000000000003,6.3E-2,1.4500000000000001E-2,{"$f":"SUM(Darbinieki[[#This Row],[Valsts nodoklis]:[Medicīnas nodoklis]])","v":0.38050000000000006},null,null,{"$f":"SUM(Darbinieki[[#This Row],[Apdrošināšanas atvilkums]:[Citi regulārie atvilkumi]])","v":0}]
[null,1049,"Kārlis Kalns",40,1,null,null,null,{"$f":"SUM(Darbinieki[[#This Row],[Nostrādātās stundas]:[Slimības stundas]])*Darbinieki[[#This Row],[Stundu samaksa]]+Darbinieki[[#This Row],[Virsstundas]]*Darbinieki[[#This Row],[Virsstundu likme]]","v":615},{"$f":"Darbinieki[[#This Row],[Bruto samaksa]]*Darbinieki[[#This Row],[Ieturētie nodokļi kopā]] + Darbinieki[[#This Row],[Regulārie atvilkumi kopā]]","v":259.00750000000005},23,{"$f":"Darbinieki[[#This Row],[Bruto samaksa]]-Darbinieki[[#This Row],[Nodokļi un atvilkumi]]-Darbinieki[[#This Row],[Citi atvilkumi]]","v":332.99249999999995},null,15,1,2,2.3E-2,0.28000000000000003,6.3E-2,1.4500000000000001E-2,{"$f":"SUM(Darbinieki[[#This Row],[Valsts nodoklis]:[Medicīnas nodoklis]])","v":0.38050000000000006},25,null,{"$f":"SUM(Darbinieki[[#This Row],[Apdrošināšanas atvilkums]:[Citi regulārie atvilkumi]])","v":25}]
[null,"Kopā",{"$f":"SUBTOTAL(103,Darbinieki[Darbinieka vārds] )","v":9},{"$f":"SUBTOTAL(109,Darbinieki[Nostrādātās stundas])","v":371},{"$f":"SUBTOTAL(109,Darbinieki[Atvaļinājuma stundas])","v":24},{"$f":"SUBTOTAL(109,Darbinieki[Slimības stundas])","v":6},{"$f":"SUBTOTAL(109,Darbinieki[Virsstundas])","v":3},null,{"$f":"SUBTOTAL(109,Darbinieki[Bruto samaksa])","v":5063},{"$f":"SUBTOTAL(109,Darbinieki[Nodokļi un atvilkumi])","v":2239.4715000000001},{"$f":"SUBTOTAL(109,Darbinieki[Citi atvilkumi])","v":118},{"$f":"SUBTOTAL(109,Darbinieki[Neto samaksa])","v":2705.5284999999994},null,null,null,null,null,null,null,null,null,{"$f":"SUBTOTAL(109,Darbinieki[Apdrošināšanas atvilkums])","v":143},{"$f":"SUBTOTAL(109,Darbinieki[Citi regulārie atvilkumi])","v":170},{"$f":"SUBTOTAL(109,Darbinieki[Regulārie atvilkumi kopā])","v":313}]

{"sheet":"pasakņu_veidne","index":1,"n_rows":47,"n_cols":13,"rows_kept":47,"cut":false,"hidden":true,"merged":[[2,7,2,8],[14,7,14,8],[26,7,26,8],[38,7,38,8],[38,11,38,12],[26,11,26,12],[14,11,14,12],[2,11,2,12],[2,3,2,4],[14,3,14,4],[26,3,26,4],[38,3,38,4],[44,2,44,3],[8,2,8,3],[9,2,9,3],[45,2,45,3],[32,2,32,3],[33,2,33,3],[20,2,20,3],[21,2,21,3]]}
[]
[null,null,{"$f":"Uzņēmuma_nosaukums","v":"ADVENTURE WORKS"}]
[null,null,"PERIODS",{"$f":"Perioda_beigas","v":"2013-04-08"},null,null,"VĀRDS, UZVĀRDS",{"$f":"IFERROR(INDEX(#REF!,Pasaknis),\"\")","v":""},null,null,"DARBINIEKA ID",{"$f":"IFERROR(INDEX(Darbinieki[ID],Pasaknis),\"\")","v":1001}]
[null,null,"Nodokļu statuss",null,{"$f":"IFERROR(INDEX(Darbinieki[Nodokļu statuss],Pasaknis),\"\")","v":1},null,"Valsts pabalsts (no W-4)",null,{"$f":"IFERROR(INDEX(Darbinieki[Valsts pabalsts],Pasaknis),\"\")","v":4},null,"Nostrādātās stundas",null,{"$f":"IFERROR(INDEX(Darbinieki[Nostrādātās stundas],Pasaknis),\"\")","v":50}]
[null,null,"Stundas likme",null,{"$f":"IFERROR(INDEX(Darbinieki[Stundu samaksa],Pasaknis),\"\")","v":10},null,"Virsstundu likme",null,{"$f":"IFERROR(INDEX(Darbinieki[Virsstundu likme],Pasaknis),\"\")","v":0},null,"Slimības stundas",null,{"$f":"IFERROR(INDEX(Darbinieki[Slimības stundas],Pasaknis),\"\")","v":1}]
[null,null,"Sociālais nodoklis",null,{"$f":"IFERROR(INDEX(Darbinieki[Sociālais nodoklis],Pasaknis)  *  INDEX(Darbinieki[Bruto samaksa],Pasaknis),\"\")","v":35.28},null,"Valsts ienākumu nodoklis  ",null,{"$f":"IFERROR(INDEX(Darbinieki[Valsts ienākumu nodoklis],Pasaknis)  *  INDEX(Darbinieki[Bruto samaksa],Pasaknis),\"\")","v":156.80000000000001},null,"Atvaļinājuma stundas",null,{"$f":"IFERROR(INDEX(Darbinieki[Atvaļinājuma stundas],Pasaknis),\"\")","v":5}]
[null,null,"Medicīnas nodoklis ",null,{"$f":"IFERROR(INDEX(Darbinieki[Medicīnas nodoklis],Pasaknis)  *  INDEX(Darbinieki[Bruto samaksa],Pasaknis),\"\")","v":8.120000000000001},null,"Valsts nodoklis ",null,{"$f":"IFERROR(INDEX(Darbinieki[Valsts nodoklis],Pasaknis)  *  INDEX(Darbinieki[Bruto samaksa],Pasaknis),\"\")","v":12.879999999999999},null,"Virsstundas",null,{"$f":"IFERROR(INDEX(Darbinieki[Virsstundas],Pasaknis),\"\")","v":0}]
[null,null,"Apdrošināšanas atvilkums",null,{"$f":"IFERROR(INDEX(Darbinieki[Apdrošināšanas atvilkums],Pasaknis),\"\")","v":20},null,"Citi regulāri atvilkumi",null,{"$f":"IFERROR(INDEX(Darbinieki[Citi regulārie atvilkumi],Pasaknis),\"\")","v":40},null,"Bruto samaksa",null,{"$f":"IFERROR(INDEX(Darbinieki[Bruto samaksa],Pasaknis),\"\")","v":560}]
[null,null,"Nodokļi un",null,{"$f":"IFERROR(INDEX(Darbinieki[Nodokļi un atvilkumi],Pasaknis),\"\")","v":273.08000000000004},null,"Citi atvilkumi",null,{"$f":"IFERROR(INDEX(Darbinieki[Citi atvilkumi],Pasaknis),\"\")","v":20},null,"Nodokļi un atvilkumi kopā ",null,{"$f":"IFERROR(INDEX(Darbinieki[Nodokļi un atvilkumi],Pasaknis)  +  INDEX(Darbinieki[Citi atvilkumi],Pasaknis),\"\")","v":293.08000000000004}]
[null,null,"regulārie atvilkumi kopā "]
[null,null,null,null,null,null,null,null,null,null,"NETO SAMAKSA",null,{"$f":"IFERROR(INDEX(Darbinieki[Neto samaksa],Pasaknis),\"\")","v":266.91999999999996}]
[]
[]
[null,null,{"$f":"Uzņēmuma_nosaukums","v":"ADVENTURE WORKS"}]
[null,null,"PERIODS",{"$f":"Perioda_beigas","v":"2013-04-08"},null,null,"VĀRDS, UZVĀRDS",{"$f":"IFERROR(INDEX(#REF!,Pasaknis),\"\")","v":""},null,null,"DARBINIEKA ID",{"$f":"IFERROR(INDEX(Darbinieki[ID],Pasaknis),\"\")","v":1002}]
[null,null,"Nodokļu statuss",null,{"$f":"IFERROR(INDEX(Darbinieki[Nodokļu statuss],Pasaknis),\"\")","v":1},null,"Valsts pabalsts (no W-4)",null,{"$f":"IFERROR(INDEX(Darbinieki[Valsts pabalsts],Pasaknis),\"\")","v":1},null,"Nostrādātās stundas",null,{"$f":"IFERROR(INDEX(Darbinieki[Nostrādātās stundas],Pasaknis),\"\")","v":40}]
[null,null,"Stundas likme",null,{"$f":"IFERROR(INDEX(Darbinieki[Stundu samaksa],Pasaknis),\"\")","v":8},null,"Virsstundu likme",null,{"$f":"IFERROR(INDEX(Darbinieki[Virsstundu likme],Pasaknis),\"\")","v":0},null,"Slimības stundas",null,{"$f":"IFERROR(INDEX(Darbinieki[Slimības stundas],Pasaknis),\"\")","v":0}]
[null,null,"Sociālais nodoklis",null,{"$f":"IFERROR(INDEX(Darbinieki[Sociālais nodoklis],Pasaknis)  *  INDEX(Darbinieki[Bruto samaksa],Pasaknis),\"\")","v":20.16},null,"Valsts ienākumu nodoklis  ",null,{"$f":"IFERROR(INDEX(Darbinieki[Valsts ienākumu nodoklis],Pasaknis)  *  INDEX(Darbinieki[Bruto samaksa],Pasaknis),\"\")","v":89.600000000000009},null,"Atvaļinājuma stundas",null,{"$f":"IFERROR(INDEX(Darbinieki[Atvaļinājuma stundas],Pasaknis),\"\")","v":0}]
[null,null,"Medicīnas nodoklis ",null,{"$f":"IFERROR(INDEX(Darbinieki[Medicīnas nodoklis],Pasaknis)  *  INDEX(Darbinieki[Bruto samaksa],Pasaknis),\"\")","v":4.6400000000000006},null,"Valsts nodoklis ",null,{"$f":"IFERROR(INDEX(Darbinieki[Valsts nodoklis],Pasaknis)  *  INDEX(Darbinieki[Bruto samaksa],Pasaknis),\"\")","v":7.3599999999999994},null,"Virsstundas",null,{"$f":"IFERROR(INDEX(Darbinieki[Virsstundas],Pasaknis),\"\")","v":0}]
[null,null,"Apdrošināšanas atvilkums",null,{"$f":"IFERROR(INDEX(Darbinieki[Apdrošināšanas atvilkums],Pasaknis),\"\")","v":0},null,"Citi regulāri atvilkumi",null,{"$f":"IFERROR(INDEX(Darbinieki[Citi regulārie atvilkumi],Pasaknis),\"\")","v":10},null,"Bruto samaksa",null,{"$f":"IFERROR(INDEX(Darbinieki[Bruto samaksa],Pasaknis),\"\")","v":320}]
[null,null,"Nodokļi un",null,{"$f":"IFERROR(INDEX(Darbinieki[Nodokļi un atvilkumi],Pasaknis),\"\")","v":131.76000000000002},null,"Citi atvilkumi",null,{"$f":"IFERROR(INDEX(Darbinieki[Citi atvilkumi],Pasaknis),\"\")","v":0},null,"Nodokļi un atvilkumi kopā ",null,{"$f":"IFERROR(INDEX(Darbinieki[Nodokļi un atvilkumi],Pasaknis)  +  INDEX(Darbinieki[Citi atvilkumi],Pasaknis),\"\")","v":131.76000000000002}]
[null,null,"regulārie atvilkumi kopā "]
[null,null,null,null,null,null,null,null,null,null,"NETO SAMAKSA",null,{"$f":"IFERROR(INDEX(Darbinieki[Neto samaksa],Pasaknis),\"\")","v":188.23999999999998}]
[]
[]
[null,null,{"$f":"Uzņēmuma_nosaukums","v":"ADVENTURE WORKS"}]
[null,null,"PERIODS",{"$f":"Perioda_beigas","v":"2013-04-08"},null,null,"VĀRDS, UZVĀRDS",{"$f":"IFERROR(INDEX(#REF!,Pasaknis),\"\")","v":""},null,null,"DARBINIEKA ID",{"$f":"IFERROR(INDEX(Darbinieki[ID],Pasaknis),\"\")","v":1003}]
[null,null,"Nodokļu statuss",null,{"$f":"IFERROR(INDEX(Darbinieki[Nodokļu statuss],Pasaknis),\"\")","v":1},null,"Valsts pabalsts (no W-4)",null,{"$f":"IFERROR(INDEX(Darbinieki[Valsts pabalsts],Pasaknis),\"\")","v":3},null,"Nostrādātās stundas",null,{"$f":"IFERROR(INDEX(Darbinieki[Nostrādātās stundas],Pasaknis),\"\")","v":35}]
[null,null,"Stundas likme",null,{"$f":"IFERROR(INDEX(Darbinieki[Stundu samaksa],Pasaknis),\"\")","v":14},null,"Virsstundu likme",null,{"$f":"IFERROR(INDEX(Darbinieki[Virsstundu likme],Pasaknis),\"\")","v":0},null,"Slimības stundas",null,{"$f":"IFERROR(INDEX(Darbinieki[Slimības stundas],Pasaknis),\"\")","v":0}]
[null,null,"Sociālais nodoklis",null,{"$f":"IFERROR(INDEX(Darbinieki[Sociālais nodoklis],Pasaknis)  *  INDEX(Darbinieki[Bruto samaksa],Pasaknis),\"\")","v":33.515999999999998},null,"Valsts ienākumu nodoklis  ",null,{"$f":"IFERROR(INDEX(Darbinieki[Valsts ienākumu nodoklis],Pasaknis)  *  INDEX(Darbinieki[Bruto samaksa],Pasaknis),\"\")","v":148.96},null,"Atvaļinājuma stundas",null,{"$f":"IFERROR(INDEX(Darbinieki[Atvaļinājuma stundas],Pasaknis),\"\")","v":3}]
[null,null,"Medicīnas nodoklis ",null,{"$f":"IFERROR(INDEX(Darbinieki[Medicīnas nodoklis],Pasaknis)  *  INDEX(Darbinieki[Bruto samaksa],Pasaknis),\"\")","v":7.7140000000000004},null,"Valsts nodoklis ",null,{"$f":"IFERROR(INDEX(Darbinieki[Valsts nodoklis],Pasaknis)  *  INDEX(Darbinieki[Bruto samaksa],Pasaknis),\"\")","v":12.236000000000001},null,"Virsstundas",null,{"$f":"IFERROR(INDEX(Darbinieki[Virsstundas],Pasaknis),\"\")","v":0}]
[null,null,"Apdrošināšanas atvilkums",null,{"$f":"IFERROR(INDEX(Darbinieki[Apdrošināšanas atvilkums],Pasaknis),\"\")","v":18},null,"Citi regulāri atvilkumi",null,{"$f":"IFERROR(INDEX(Darbinieki[Citi regulārie atvilkumi],Pasaknis),\"\")","v":20},null,"Bruto samaksa",null,{"$f":"IFERROR(INDEX(Darbinieki[Bruto samaksa],Pasaknis),\"\")","v":532}]
[null,null,"Nodokļi un",null,{"$f":"IFERROR(INDEX(Darbinieki[Nodokļi un atvilkumi],Pasaknis),\"\")","v":240.42600000000004},null,"Citi atvilkumi",null,{"$f":"IFERROR(INDEX(Darbinieki[Citi atvilkumi],Pasaknis),\"\")","v":0},null,"Nodokļi un atvilkumi kopā ",null,{"$f":"IFERROR(INDEX(Darbinieki[Nodokļi un atvilkumi],Pasaknis)  +  INDEX(Darbinieki[Citi atvilkumi],Pasaknis),\"\")","v":240.42600000000004}]
[null,null,"regulārie atvilkumi kopā "]
[null,null,null,null,null,null,null,null,null,null,"NETO SAMAKSA",null,{"$f":"IFERROR(INDEX(Darbinieki[Neto samaksa],Pasaknis),\"\")","v":291.57399999999996}]
[]
[]
[null,null,{"$f":"Uzņēmuma_nosaukums","v":"ADVENTURE WORKS"}]
[null,null,"PERIODS",{"$f":"Perioda_beigas","v":"2013-04-08"},null,null,"VĀRDS, UZVĀRDS",{"$f":"IFERROR(INDEX(#REF!,Pasaknis),\"\")","v":""},null,null,"DARBINIEKA ID",{"$f":"IFERROR(INDEX(Darbinieki[ID],Pasaknis),\"\")","v":1008}]
[null,null,"Nodokļu statuss",null,{"$f":"IFERROR(INDEX(Darbinieki[Nodokļu statuss],Pasaknis),\"\")","v":1},null,"Valsts pabalsts (no W-4)",null,{"$f":"IFERROR(INDEX(Darbinieki[Valsts pabalsts],Pasaknis),\"\")","v":0},null,"Nostrādātās stundas",null,{"$f":"IFERROR(INDEX(Darbinieki[Nostrādātās stundas],Pasaknis),\"\")","v":50}]
[null,null,"Stundas likme",null,{"$f":"IFERROR(INDEX(Darbinieki[Stundu samaksa],Pasaknis),\"\")","v":20},null,"Virsstundu likme",null,{"$f":"IFERROR(INDEX(Darbinieki[Virsstundu likme],Pasaknis),\"\")","v":0},null,"Slimības stundas",null,{"$f":"IFERROR(INDEX(Darbinieki[Slimības stundas],Pasaknis),\"\")","v":1}]
[null,null,"Sociālais nodoklis",null,{"$f":"IFERROR(INDEX(Darbinieki[Sociālais nodoklis],Pasaknis)  *  INDEX(Darbinieki[Bruto samaksa],Pasaknis),\"\")","v":70.56},null,"Valsts ienākumu nodoklis  ",null,{"$f":"IFERROR(INDEX(Darbinieki[Valsts ienākumu nodoklis],Pasaknis)  *  INDEX(Darbinieki[Bruto samaksa],Pasaknis),\"\")","v":313.60000000000002},null,"Atvaļinājuma stundas",null,{"$f":"IFERROR(INDEX(Darbinieki[Atvaļinājuma stundas],Pasaknis),\"\")","v":5}]
[null,null,"Medicīnas nodoklis ",null,{"$f":"IFERROR(INDEX(Darbinieki[Medicīnas nodoklis],Pasaknis)  *  INDEX(Darbinieki[Bruto samaksa],Pasaknis),\"\")","v":16.240000000000002},null,"Valsts nodoklis ",null,{"$f":"IFERROR(INDEX(Darbinieki[Valsts nodoklis],Pasaknis)  *  INDEX(Darbinieki[Bruto samaksa],Pasaknis),\"\")","v":25.759999999999998},null,"Virsstundas",null,{"$f":"IFERROR(INDEX(Darbinieki[Virsstundas],Pasaknis),\"\")","v":0}]
[null,null,"Apdrošināšanas atvilkums",null,{"$f":"IFERROR(INDEX(Darbinieki[Apdrošināšanas atvilkums],Pasaknis),\"\")","v":15},null,"Citi regulāri atvilkumi",null,{"$f":"IFERROR(INDEX(Darbinieki[Citi regulārie atvilkumi],Pasaknis),\"\")","v":0},null,"Bruto samaksa",null,{"$f":"IFERROR(INDEX(Darbinieki[Bruto samaksa],Pasaknis),\"\")","v":1120}]
[null,null,"Nodokļi un",null,{"$f":"IFERROR(INDEX(Darbinieki[Nodokļi un atvilkumi],Pasaknis),\"\")","v":441.16000000000008},null,"Citi atvilkumi",null,{"$f":"IFERROR(INDEX(Darbinieki[Citi atvilkumi],Pasaknis),\"\")","v":0},null,"Nodokļi un atvilkumi kopā ",null,{"$f":"IFERROR(INDEX(Darbinieki[Nodokļi un atvilkumi],Pasaknis)  +  INDEX(Darbinieki[Citi atvilkumi],Pasaknis),\"\")","v":441.16000000000008}]
[null,null,"regulārie atvilkumi kopā "]
[null,null,null,null,null,null,null,null,null,null,"NETO SAMAKSA",null,{"$f":"IFERROR(INDEX(Darbinieki[Neto samaksa],Pasaknis),\"\")","v":678.83999999999992}]